{"text_format":"2","workbook":"xlsx","n_sheets":1,"sheets":["Planilha"],"not_rendered":{"charts":0,"images":0,"macros":0,"external_links":0,"defined_names":0,"comments":0,"pivot_tables":0},"unopened":[],"bounds":{"document_bytes":16777216,"sheet_cells":100000,"run_cost":"one","rows_first":2000,"rows_last":500,"rows_between":2000,"halvings":0,"cell_chars":16384,"cell_head_chars":4096},"cells_cut":0,"cells_raw":0,"read":"whole","date_system":"1900"}

{"sheet":"Planilha","index":0,"n_rows":27,"n_cols":7,"rows_kept":27,"cut":false,"hidden":false,"merged":[[25,1,25,5],[26,0,26,5],[1,0,2,0],[1,1,2,1],[1,2,2,2],[1,3,2,3],[1,4,2,4],[7,0,8,0],[7,1,8,1],[7,2,8,2],[7,3,8,3],[0,0,0,5],[21,1,21,5],[22,1,22,5],[23,1,23,5],[24,1,24,5]]}
["ESTIMATIVA DE CUSTO MAIO 2013"]
["DESCRIÇÃO DO ITEM 1","Qtde. Estimada Mensal","Qtde. Estimada Anual","Valor Unitário R$","Vlr. Estimado Mensal= Preços (x) Serviços (–) Desconto (R$)","Vlr. Estimado Anual= "]
[{"$nulls":5},"Preços (x) Serviços (–) Desconto (R$)",1.0390767000000001]
["Assinatura Básica de voz (32 acessos)",32,384,5.19,{"$f":"B4*D4","v":166.08},{"$f":"C4*D4","v":1992.96}]
["Acesso à Caixa Postal ",1600,19200,0.47,{"$f":"B5*D5","v":752},{"$f":"C5*D5","v":9024}]
["Serviço de dados para SmartPhone (20 acessos ilimitados)",20,240,72.73,1454.6000000000001,17455.2]
["Serviço Internet Móvel 3G - com velocidade de nominal de 1MB, Hardware com 20 modens 3G com interface USB em regime de comodato.",20,240,103.8,2076,24912]
["DESCRIÇÃO DO ITEM 2","Qtde. Min. Estimados / Mensal","Qtde  Min. Estimados / Ano","Valor unitário R$","Resultado ao mês= ","Resultado ao ano= "]
[{"$nulls":4},"Preços (x) Serviços (–) Desconto R$","Preços x Serviços – Desconto (R$)"]
["VC1 Móvel/Móvel (mesma operadora)",4800,57600,0.31,{"$f":"B10*D10","v":1488},{"$f":"C10*D10","v":17856}]
["VC1 Móvel/Móvel Intra-grupo (serviço tarifa zero nacional) ",32,384,19.22,{"$f":"B11*D11","v":615.04},{"$f":"C11*D11","v":7380.48}]
["VC1 MM - Móvel/Móvel (outras operadoras)",9600,115200,0.31,2976,35712]
["VC1 MF - Móvel/Fixo ",4800,57600,0.31,1488,17856]
["VC1 R - Móvel/Móvel em Roaming ",640,7680,0.31,198.4,2380.8000000000002]
["VC1 R -  Móvel/Fixo em Roaming",640,7680,0.31,198.4,2380.8000000000002]
["Ferramenta de gestão on-line (32 acessos)",32,384,5.09,162.88,1954.56]
["DSL1 - Chamadas dirigidas quando em Roaming para CN 61 a 69 ",480,5760,0,0,0]
["DSL2 - Chamadas dirigidas quando em Roaming para CN das demais localidades",1440,17280,0,0,0]
["Adicional Deslocamento – (AD)",4800,57600,0,0,0]
["Mensagem de texto - SMS ",1600,19200,0.31,{"$f":"B20*D20","v":496},{"$f":"C20*D20","v":5952}]
["Mensagem de texto c/áudio e imagem - MMS ",640,7680,0.62,{"$f":"B21*D21","v":396.8},{"$f":"C21*D21","v":4761.6000000000004}]
["DESCRIÇÃO DO ITEM 3","QUANTIDADE / ANO / EM R$"]
["Previsão para Roaming internacional ",10000]
["VALOR ESTIMADO MENSAL",{"$f":"SUM(E4:E7,E10:E21)","v":12468.199999999999}]
["VALOR ESTIMADO ANUAL",{"$f":"SUM(F4:F7,F10:F21)","v":149618.4}]
["TOTAL DA PROPOSTA PARA O ITEM 1 e 2 (com desconto) = R$ (  ) ",149618]
["·         Valores arrendodados para maior, R$ 0,40 (quarenta centavos), em relação ao valor orçado pela Operadora. ** Valor atualizado mensal de acordo com o IGP-DI "]